bitfinex/quotes_SOLUSD_20240716
["timestamp","ask_amount","ask_price","bid_price","bid_amount"]
[1721093533120,6.3247,158.11,158.09,3.29958374]
[1721093533328,4.98069695,158.1,158.09,3.29958374]
[1721093533524,4.98069695,158.1,158.08,3.29958374]
[1721093533525,6.3255,158.09,158.08,3.29958374]
[1721093533725,4.98069695,158.07,158.02,13.27885429]
[1721093533933,10.0,158.11,158.02,13.27885429]
[1721093533934,6.326,158.08,158.02,13.27885429]
[1721093534240,6.326,158.08,157.91,13.27885429]
[1721093534445,6.326,158.08,157.94,7.6073213]
[1721093534446,20.0,158.07,157.94,7.6073213]
[1721093534746,6.3289,158.01,157.89,13.27885429]
[1721093535045,20.79799695,158.06,157.89,13.27885429]
[1721093535230,4.98069695,158.04,157.9,19.15603443]
[1721093535578,6.3288,158.01,157.89,13.27885429]
[1721093535725,4.98069695,158.04,157.89,13.27885429]
[1721093536050,20.0,158.05,157.89,13.27885429]
[1721093536051,4.98069695,158.02,157.89,13.27885429]
[1721093536238,24.98069695,158.02,157.89,32.33885429]
[1721093536557,24.98069695,158.02,157.9,20.0]
[1721093536744,31.30899695,158.02,157.9,20.0]
[1721093536950,24.98069695,158.02,157.9,20.0]
[1721093537247,4.98069695,157.98,157.89,20.0]
[1721093537430,4.98069695,157.98,157.9,1.26583935]
[1721093538135,24.98069695,158.02,157.9,20.32583935]
[1721093538338,4.98069695,158.02,157.91,84.06]
[1721093538544,4.98069695,158.02,157.92,74.93565606]
[1721093538744,4.98069695,158.02,157.93,65.32555687]
[1721093538932,4.98069695,158.02,157.94,20.0]
[1721093539136,4.98069695,158.02,157.95,1.26539662]
[1721093539343,4.98069695,158.02,157.96,1.26553421]
[1721093540031,4.98069695,158.04,157.96,1.26553421]
[1721093540461,4.98069695,158.04,157.95,45.0]
[1721093541955,4.98069695,158.04,157.96,20.0]
[1721093543838,4.98069695,158.06,157.97,45.0]
[1721093544053,4.98069695,158.06,157.98,20.0]
[1721093544258,4.98069695,158.06,157.99,45.0]
[1721093544752,4.98069695,158.04,157.98,20.0]
[1721093544947,4.98069695,158.04,157.95,20.0]
[1721093545157,4.98069695,158.04,157.96,45.0]
[1721093545375,4.98069695,158.04,157.97,20.0]
[1721093546568,4.98069695,158.04,157.98,45.0]
[1721093547440,4.98069695,158.07,157.98,45.0]
[1721093547655,4.98069695,158.05,157.98,45.0]
[1721093547854,4.98069695,158.07,157.99,1.26531172]
[1721093548058,4.98069695,158.07,157.99,21.26531172]
[1721093548245,4.98069695,158.07,158.0,45.0]
[1721093548448,4.98069695,158.09,158.01,1.26516619]
[1721093548748,4.98069695,158.06,158.02,1.26514927]
[1721093549145,4.98069695,158.06,157.97,1.26514927]
[1721093549356,4.98069695,158.06,157.97,46.26514927]
[1721093549544,4.98069695,158.06,157.98,20.0]
[1721093549749,4.98069695,158.06,157.99,46.26498911]
[1721093550149,4.98069695,158.06,158.0,20.0]
[1721093550455,4.98069695,158.06,158.01,1.26482899]
[1721093550636,4.98069695,158.06,158.0,20.0]
[1721093551652,4.98069695,158.06,158.01,0.41609311]
[1721093552262,4.98069695,158.06,157.96,39.06]
[1721093552468,4.98069695,158.06,157.96,20.0]
[1721093553045,4.98069695,158.06,157.97,45.0]
[1721093553376,4.98069695,158.06,157.98,20.46339388]
[1721093553667,4.98069695,158.06,157.99,45.0]
[1721093553838,4.98069695,158.06,158.0,20.54761424]
[1721093554039,4.98069695,158.06,158.01,45.0]
[1721093554267,4.98069695,158.06,158.02,0.59360358]
[1721093554766,4.98069695,158.04,157.97,0.59360358]
[1721093554964,4.98069695,158.04,157.98,1.23512711]
[1721093555264,4.98069695,158.04,157.98,20.0]
[1721093555569,4.98069695,158.04,157.96,65.0]
[1721093555874,4.98069695,158.04,157.97,45.0]
[1721093556070,4.98069695,158.04,157.98,20.0]
[1721093556270,4.98069695,158.04,157.93,10.01930305]
[1721093556271,4.98069695,158.04,157.87,10.01930305]
[1721093556449,6.328,158.03,157.93,5.87721014]
[1721093556762,33.45771514,158.07,157.95,13.17374447]
[1721093556962,45.0,158.06,157.95,13.17374447]
[1721093557146,45.0,158.06,157.96,19.04414209]
[1721093557345,45.0,158.06,157.91,13.17374447]
[1721093557549,45.0,158.06,157.9,66.84374447]
[1721093557869,45.0,158.06,157.91,40.3257497]
[1721093558055,51.327,158.06,157.91,40.3257497]
[1721093558462,20.0,158.05,157.93,53.67]
[1721093558772,20.0,158.05,157.94,85.32549658]
[1721093559078,20.0,158.05,157.94,66.26549658]
[1721093559660,20.0,158.07,157.94,66.26549658]
[1721093559860,20.0,158.07,157.94,85.32549658]
[1721093560167,6.61135723,158.08,157.94,85.32549658]
[1721093560367,6.61135723,158.08,157.98,30.8]
[1721093560673,6.61135723,158.08,157.99,66.26509608]
[1721093561560,6.61135723,158.08,157.99,46.26509608]
[1721093562153,6.3273,158.05,157.99,1.26509608]
[1721093562345,6.3273,158.05,157.9,19.06]
[1721093562543,6.3273,158.05,157.92,19.06]
[1721093562749,12.94047024,158.04,157.94,30.8]
[1721093563067,6.3281,158.03,157.95,20.0]
[1721093563665,6.61297024,158.04,157.95,20.0]
[1721093563852,6.61297024,158.04,157.96,45.0]
[1721093564055,6.61297024,158.04,157.97,20.0]
[1721093565466,6.61297024,158.04,157.95,20.0]
[1721093565671,6.61297024,158.04,157.96,45.0]
[1721093565882,6.61297024,158.04,157.97,20.0]
[1721093566666,6.61297024,158.04,157.9,19.06]
[1721093566975,6.61297024,158.04,157.94,30.8]
[1721093567173,6.61297024,158.04,157.95,20.0]
[1721093568372,6.61297024,158.04,157.96,45.0]
[1721093568968,6.61297024,158.04,157.97,0.40404727]
[1721093569363,6.61297024,158.04,157.96,45.0]
[1721093569848,6.61297024,158.04,157.97,0.76759858]
[1721093570574,6.61297024,158.04,157.98,1.26551866]
[1721093571654,6.61297024,158.04,157.99,1.26542661]
[1721093572550,6.61297024,158.04,157.97,1.26536225]
[1721093572752,15.8815,158.09,157.97,1.26536225]
[1721093572952,6.61459954,158.07,157.97,21.26536225]
[1721093573151,6.61459954,158.07,157.98,45.0]
[1721093573367,20.0,158.06,157.99,1.26520206]
[1721093573861,6.61459954,158.07,157.98,45.0]
[1721093575271,6.61459954,158.07,157.98,64.06]
[1721093575479,15.8815,158.09,158.0,30.8]
[1721093575678,20.0,158.08,158.01,46.12560599]
[1721093575879,15.8815,158.09,158.01,46.12560599]
[1721093578783,15.8815,158.09,158.01,45.0]
[1721093581005,15.8815,158.09,158.02,20.0]
[1721093582599,22.2071,158.09,158.02,20.0]
[1721093582793,22.2071,158.09,158.01,20.0]
[1721093582996,6.3263,158.07,157.97,30.8]
[1721093584778,6.3263,158.07,157.98,20.0]
[1721093585192,15.8815,158.09,157.95,20.0]
[1721093585389,20.0,158.08,157.96,45.43366476]
[1721093585590,20.0,158.08,157.97,20.0]
[1721093585784,20.0,158.08,157.98,46.26537183]
[1721093585984,20.0,158.08,157.99,1.26537418]
[1721093586190,26.3259,158.08,157.99,1.26537418]
[1721093586389,6.3268,158.06,157.97,20.0]
[1721093586587,26.3263,158.08,157.95,20.0]
[1721093586906,26.3263,158.08,157.96,45.0]
[1721093587080,20.0,158.08,157.97,20.0]
[1721093587276,20.0,158.08,157.98,45.0]
[1721093587685,26.3259,158.08,157.98,45.0]
[1721093588081,6.327,158.06,157.97,20.0]
[1721093588298,6.327,158.06,157.94,20.0]
[1721093588687,6.60168406,158.05,157.94,20.0]
[1721093589491,6.5553,158.04,157.95,45.0]
[1721093589795,6.5553,158.04,157.96,20.0]
[1721093590385,6.5553,158.04,157.97,46.26543163]
[1721093591805,6.5553,158.04,157.98,1.26535152]
[1721093593108,22.2706,158.09,157.99,30.8]
[1721093593283,22.2706,158.09,157.98,20.0]
[1721093593483,35.1988474,158.09,157.99,45.0]
[1721093593689,35.1988474,158.09,158.0,20.0]
[1721093594081,28.8731474,158.09,158.0,20.0]
[1721093594604,6.3263,158.07,158.0,20.0]
[1721093594810,6.3263,158.07,157.97,20.0]
[1721093594989,6.3263,158.07,157.98,45.0]
[1721093595513,6.3263,158.07,157.99,20.0]
[1721093595694,6.3259,158.08,157.99,20.0]
[1721093596296,28.8731474,158.09,157.99,20.0]
[1721093596501,6.3267,158.06,157.92,64.86]
[1721093596682,6.3283,158.02,157.91,19.06]
[1721093596885,40.8,158.07,157.91,30.8]
[1721093597110,30.8,158.04,157.91,30.8]
[1721093597318,20.0,158.03,157.91,30.8]
[1721093597481,6.3283,158.02,157.91,30.8]
[1721093597686,20.0,158.01,157.91,30.8]
[1721093597915,20.0,158.03,157.91,30.8]
[1721093598093,51.4707,158.02,157.91,30.8]
[1721093598405,15.7745,158.0,157.89,30.8]
[1721093598633,15.7745,158.0,157.9,20.0]
[1721093599009,15.7745,158.0,157.91,45.0]
[1721093599211,15.7745,158.0,157.92,20.0]
[1721093599508,15.7745,158.0,157.93,45.0]
[1721093600012,6.4707,158.02,157.94,20.0]
[1721093600213,6.4707,158.02,157.95,45.0]
[1721093600405,6.4707,158.02,157.96,20.0]
[1721093600609,16.0916,158.05,157.97,45.0]
[1721093601395,16.0916,158.05,157.98,50.8]
[1721093601598,6.1426,158.06,157.99,45.0]
[1721093601805,6.1426,158.06,158.0,20.0]
[1721093602004,6.1426,158.06,158.01,45.0]
[1721093603998,6.6025474,158.09,158.01,45.0]
[1721093606295,6.6025474,158.09,158.02,0.40658294]
[1721093606495,6.6025474,158.09,158.02,0.67018175]
[1721093607412,6.6025474,158.09,158.03,0.67013934]
[1721093608011,6.6025474,158.09,158.04,1.26501521]
[1721093609000,6.6025474,158.09,158.02,1.26501521]
[1721093609401,6.6025474,158.09,158.01,45.0]
[1721093610114,6.6025474,158.09,158.01,75.8]
[1721093611318,22.3201,158.1,158.01,75.8]
[1721093611933,22.3201,158.1,158.01,45.0]
[1721093612432,22.3201,158.1,158.0,45.0]
[1721093612627,22.3201,158.1,158.01,20.0]
[1721093612922,22.3201,158.1,158.02,45.0]
[1721093613514,6.60868254,158.11,158.03,20.0]
[1721093613723,6.084,158.14,158.04,46.26189648]
[1721093614019,6.084,158.14,158.05,20.0]
[1721093614234,6.084,158.14,158.06,46.2617368]
[1721093614394,6.084,158.14,158.07,20.0]
[1721093614718,6.084,158.14,158.08,1.26157716]
[1721093615926,12.4076,158.14,158.08,1.26157716]
[1721093616418,6.084,158.14,158.06,1.26157716]
[1721093617725,6.084,158.14,158.03,69.83]
[1721093618017,6.084,158.14,158.04,45.0]
[1721093618224,15.0826,158.15,158.05,20.0]
[1721093618410,15.0826,158.15,158.06,45.0]
[1721093618613,15.0826,158.15,158.07,1.26450555]
[1721093618816,15.0826,158.15,158.08,1.26447148]
[1721093619017,6.60937919,158.16,158.08,1.26447148]
[1721093619202,6.60937919,158.16,158.08,46.26447148]
[1721093620415,6.60937919,158.16,158.08,1.26447148]
[1721093620823,6.60937919,158.16,158.08,46.26447148]
[1721093622307,6.60937919,158.16,158.09,50.77]
[1721093622619,22.9787,158.19,158.1,46.26431152]
[1721093622816,22.9787,158.19,158.11,21.26423155]
[1721093622817,23.12262479,158.19,158.11,21.26423155]
[1721093622999,6.61292479,158.19,158.12,45.0]
[1721093623317,0.8109379,158.22,158.13,1.26421889]
[1721093623318,7.42329071,158.22,158.13,1.26421889]
[1721093624021,13.74359071,158.22,158.12,75.77]
[1721093624332,7.42329071,158.22,158.12,75.77]
[1721093624539,7.42329071,158.22,158.13,20.0]
[1721093624739,0.8109379,158.22,158.14,45.0]
[1721093624954,0.8109379,158.22,158.15,50.77]
[1721093625148,0.8109379,158.22,158.16,45.0]
[1721093625530,7.1312379,158.22,157.99,378.01819337]
[1721093625730,0.8109379,158.22,158.12,30.77]
[1721093625958,0.8109379,158.22,158.13,20.0]
[1721093626147,7.1312379,158.22,158.13,20.0]
[1721093626678,0.8109379,158.22,158.12,30.77]
[1721093626843,0.8109379,158.22,158.09,30.77]
[1721093627169,6.3223,158.17,158.06,49.83]
[1721093627341,6.3223,158.17,158.06,30.77]
[1721093628344,6.4705,158.18,158.07,20.0]
[1721093628555,20.0,158.17,158.07,20.0]
[1721093628933,20.0,158.17,158.08,45.0]
[1721093629637,20.0,158.17,158.09,1.25614545]
[1721093631734,13.3170379,158.22,158.13,0.78383613]
[1721093632135,6.9967379,158.22,158.13,0.78383613]
[1721093632552,20.0,158.21,158.14,1.23319434]
[1721093633449,6.9967379,158.22,158.14,1.23319434]
[1721093633657,6.9967379,158.22,158.13,21.23319434]
[1721093633845,6.9967379,158.22,158.14,45.0]
[1721093634045,6.9967379,158.22,158.15,21.23303838]
[1721093634254,0.8109379,158.22,158.16,45.0]
[1721093634767,0.8109379,158.22,158.16,75.77]
[1721093635134,0.8109379,158.22,158.16,94.83]
[1721093635335,0.8109379,158.22,158.17,20.0]
[1721093635570,0.8109379,158.22,158.18,45.0]
[1721093635735,0.8109379,158.22,158.19,20.0]
[1721093635936,0.8109379,158.22,158.2,45.0]
[1721093637035,0.8109379,158.22,158.2,45.90336252]
[1721093637454,0.8109379,158.22,158.21,0.90330542]
[1721093638131,0.8109379,158.22,158.19,20.0]
[1721093638353,0.8109379,158.22,158.17,20.0]
[1721093638560,0.8109379,158.22,158.18,45.0]
[1721093638752,0.8109379,158.22,158.19,20.0]
[1721093639639,0.8109379,158.22,158.2,45.0]
[1721093640043,0.8109379,158.22,158.15,36.9171]
[1721093640260,0.8109379,158.22,158.16,65.0]
[1721093640560,0.8109379,158.22,158.15,36.9171]
[1721093640561,0.8109379,158.22,158.15,30.77]
[1721093641555,0.8109379,158.22,158.16,1.2624538]
[1721093642055,0.8109379,158.22,158.16,65.3224538]
[1721093642238,0.8109379,158.22,158.17,20.0]
[1721093642434,0.8109379,158.22,158.18,75.77]
[1721093642948,0.8109379,158.22,158.19,20.0]
[1721093643150,0.8109379,158.22,158.2,45.0]
[1721093645066,0.8109379,158.22,158.19,20.0]
[1721093645355,0.8109379,158.22,158.18,20.0]
[1721093645556,0.8109379,158.22,158.19,45.0]
[1721093645749,0.8109379,158.22,158.18,20.0]
[1721093646067,0.8109379,158.22,158.19,45.0]
[1721093646239,0.8109379,158.22,158.18,20.0]
[1721093646738,0.8109379,158.22,158.15,20.0]
[1721093647148,0.8109379,158.22,158.14,37.380616]
[1721093647662,0.8109379,158.22,158.14,6.610616]
[1721093648562,0.8109379,158.22,158.15,65.0]
[1721093651051,0.8109379,158.22,158.15,84.06]
[1721093651253,0.8109379,158.22,158.15,65.0]
[1721093652155,0.8109379,158.22,158.15,84.06]
[1721093652357,0.8109379,158.22,158.16,49.83]
[1721093652556,0.8109379,158.22,158.17,65.0]
[1721093656753,0.8109379,158.22,158.17,20.0]
[1721093658180,0.8109379,158.22,158.16,30.77]
[1721093658553,0.8109379,158.22,158.17,20.0]
[1721093660184,0.8109379,158.22,158.2,65.0]
[1721093660483,0.8109379,158.22,158.21,15.36]
[1721093660778,0.8109379,158.22,158.21,80.36]
[1721093661660,3.79e-05,158.22,158.21,80.36]
[1721093661867,3.79e-05,158.22,158.21,20.0]
[1721093662170,3.79e-05,158.22,158.21,60.36]
[1721093662366,3.79e-05,158.22,158.21,65.0]
[1721093664580,3.79e-05,158.22,158.21,95.71]
[1721093664761,3.79e-05,158.22,158.21,114.77]
[1721093665157,3.79e-05,158.22,158.21,95.71]
[1721093665359,3.79e-05,158.22,158.21,75.71]
[1721093665564,3.79e-05,158.22,158.21,45.0]
[1721093665889,3.79e-05,158.22,158.18,30.71]
[1721093666459,3.79e-05,158.22,158.14,25.670616]
[1721093666770,3.79e-05,158.22,158.14,6.610616]
[1721093666979,3.79e-05,158.22,158.15,30.71]
[1721093668062,3.79e-05,158.22,158.16,45.0]
[1721093668268,22.154,158.21,158.14,6.610616]
[1721093668571,22.154,158.21,158.12,19.06]
[1721093669857,22.154,158.21,158.13,45.0]
[1721093671165,22.154,158.21,158.12,45.0]
[1721093671374,22.154,158.21,158.13,20.0]
[1721093671576,22.154,158.21,158.14,45.93811678]
[1721093671875,22.154,158.21,158.14,0.93811678]
[1721093672582,22.154,158.21,158.13,0.93811678]
[1721093673078,22.154,158.21,158.13,45.93811678]
[1721093677379,22.154,158.21,158.14,30.71]
[1721093677575,22.154,158.21,158.15,65.93799814]
[1721093680188,3.79e-05,158.22,158.15,65.93799814]
[1721093680189,3.79e-05,158.22,158.17,30.71]
[1721093680397,3.79e-05,158.22,158.18,45.93782024]
[1721093681011,3.79e-05,158.22,158.2,30.71]
[1721093681288,3.79e-05,158.22,158.21,65.0]
[1721093681888,3.79e-05,158.22,158.21,0.40853066]
[1721093682081,3.79e-05,158.22,158.08,18.9402525]
[1721093682282,15.3700379,158.22,158.17,15.37]
[1721093682480,15.37,158.21,158.07,9.7573525]
[1721093682685,15.37,158.21,158.16,15.37]
[1721093683294,6.3203379,158.22,158.17,15.37]
[1721093683670,3.79e-05,158.22,158.17,15.37]
[1721093683967,15.3700379,158.22,158.17,15.37]
[1721093684167,15.3700379,158.22,158.09,34.7209]
[1721093684369,3.79e-05,158.22,158.14,20.0]
[1721093686582,3.79e-05,158.22,158.15,45.0]
[1721093686781,3.79e-05,158.22,158.14,20.0]
[1721093688079,3.79e-05,158.22,158.15,45.0]
[1721093689891,3.79e-05,158.22,158.16,20.0]
[1721093690181,3.79e-05,158.22,158.17,45.0]
[1721093691481,3.79e-05,158.22,158.18,20.0]
[1721093691680,3.79e-05,158.22,158.19,45.0]
[1721093692000,3.79e-05,158.22,158.2,0.81908291]
[1721093692315,3.79e-05,158.22,158.21,0.81903113]
[1721093693487,3.79e-05,158.22,158.2,20.0]
[1721093693680,3.79e-05,158.22,158.21,0.81938932]
[1721093696685,3.79e-05,158.22,158.21,1.26376609]
[1721093697902,3.79e-05,158.22,158.21,45.0]
[1721093698205,3.79e-05,158.22,158.21,65.0]
[1721093699205,3.79e-05,158.22,158.21,45.0]
[1721093699403,3.79e-05,158.22,158.21,95.74]
[1721093704395,3.79e-05,158.22,158.21,80.35]
[1721093705188,3.79e-05,158.22,158.21,95.7]
[1721093706121,22.7325,158.31,158.21,114.76]
[1721093706285,22.7325,158.31,158.29,15.35]
[1721093706797,22.7325,158.31,158.3,16.52277732]
[1721093706991,22.7325,158.31,158.3,15.35]
[1721093708193,22.7325,158.31,158.24,61.4]
[1721093708392,22.7325,158.31,158.29,15.35]
[1721093709110,22.7325,158.31,158.3,15.35]
[1721093709908,21.7869,158.35,158.3,15.35]
[1721093710092,21.7869,158.35,158.32,15.35]
[1721093710724,21.7869,158.35,158.24,80.46]
[1721093710909,21.7869,158.35,158.25,20.0]
[1721093711090,21.7869,158.35,158.3,15.35]
[1721093711091,15.35,158.34,158.3,15.35]
[1721093711399,37.1369,158.35,158.3,15.35]
[1721093711590,21.7869,158.35,158.3,15.35]
[1721093711892,21.7869,158.35,158.31,15.35]
[1721093712093,21.7869,158.35,158.3,15.35]
[1721093712410,21.7869,158.35,158.31,15.35]
[1721093713194,15.35,158.34,158.25,20.0]
[1721093713414,15.35,158.33,158.28,15.35]
[1721093713606,15.35,158.34,158.29,15.35]
[1721093714307,37.1369,158.35,158.3,15.35]
[1721093714917,37.1369,158.35,158.24,61.4]
[1721093714918,15.35,158.34,158.29,15.35]
[1721093715101,21.7869,158.35,158.28,15.35]
[1721093715298,15.35,158.33,158.28,15.35]
[1721093715495,15.35,158.34,158.29,15.35]
[1721093715708,21.7869,158.35,158.16,76.8843]
[1721093715709,28.102,158.35,158.16,76.8843]
[1721093716016,15.35,158.33,158.28,15.35]
[1721093716217,21.7869,158.35,158.29,15.35]
[1721093716417,15.35,158.34,158.29,15.35]
[1721093716915,21.7869,158.35,158.18,6.92070839]
[1721093717112,16.0592,158.29,158.25,15.35]
[1721093718105,6.1873,158.28,158.24,15.35]
[1721093718823,6.1873,158.28,158.25,15.35]
[1721093720819,6.1873,158.28,158.24,15.35]
[1721093722214,6.1873,158.28,158.25,15.35]
[1721093723907,6.1873,158.28,158.17,19.06]
[1721093724107,6.1873,158.28,158.25,15.35]
[1721093724304,6.1873,158.28,158.18,45.0]
[1721093724510,6.1873,158.28,158.25,15.35]
[1721093724915,6.1873,158.28,158.16,61.4]
[1721093725132,15.35,158.26,158.21,15.35]
[1721093725309,15.35,158.25,158.2,15.35]
[1721093727021,15.35,158.25,158.16,61.4]
[1721093727326,15.35,158.25,158.2,15.35]
[1721093727523,15.35,158.25,158.13,266.8]
[1721093727732,15.35,158.25,158.2,15.35]
[1721093727936,15.35,158.24,158.19,15.35]
[1721093728224,6.3188,158.26,158.18,15.35]
[1721093728225,31.9709,158.23,158.18,15.35]
[1721093728605,15.35,158.21,158.13,266.8]
[1721093728807,15.35,158.21,158.16,15.35]
[1721093729034,15.35,158.21,158.13,10.0]
[1721093729209,15.35,158.2,158.15,15.35]
[1721093729409,6.093,158.22,158.16,15.35]
[1721093729709,15.35,158.21,158.16,15.35]
[1721093730228,15.35,158.21,158.13,10.0]
[1721093730433,15.35,158.21,158.16,15.35]
[1721093731322,6.3208,158.21,158.14,15.35]
[1721093731520,15.35,158.19,158.13,25.35]
[1721093731720,15.35,158.18,158.13,10.0]
[1721093731906,26.3211,158.2,158.13,10.0]
[1721093731907,15.9077,158.16,158.13,10.0]
[1721093732515,15.9077,158.16,158.13,25.35]
[1721093733712,15.9077,158.16,158.15,15.35]
[1721093734037,31.2436,158.21,158.15,15.35]
[1721093734229,15.35,158.2,158.15,15.35]
[1721093735523,6.60086843,158.2,158.16,15.35]
[1721093735720,21.95086843,158.2,158.15,15.35]
[1721093736950,21.95086843,158.2,158.16,15.35]
[1721093737148,6.60086843,158.2,158.19,15.35]
[1721093737319,15.8936,158.21,158.19,15.35]
[1721093738552,15.8936,158.21,158.18,15.35]
[1721093739743,15.8936,158.21,158.19,15.35]
[1721093741038,6.093,158.22,158.2,15.35]
[1721093741244,6.093,158.22,158.13,10.0]
[1721093741418,6.093,158.22,158.18,15.35]
[1721093743321,6.093,158.22,158.19,15.35]
[1721093743629,6.093,158.22,158.2,15.35]
[1721093743949,6.093,158.22,158.14,65.0]
[1721093744161,6.093,158.22,158.2,15.35]
[1721093744338,16.2544,158.25,158.16,61.4]
[1721093744655,16.2544,158.25,158.23,15.35]
[1721093745028,16.2544,158.25,158.24,15.35]
[1721093745226,6.59851898,158.29,158.24,15.35]
[1721093745460,6.59851898,158.29,158.17,84.06]
[1721093745461,38.1354,158.3,158.25,15.35]
[1721093745668,29.37384897,158.3,158.26,15.35]
[1721093746161,29.37384897,158.3,158.19,34.3299]
[1721093746330,22.7854,158.3,158.27,15.35]
[1721093748662,16.2544,158.3,158.27,15.35]
[1721093748867,6.58968682,158.32,158.29,15.35]
[1721093749061,23.0994,158.34,158.24,61.4]
[1721093749243,38.4494,158.34,158.29,15.35]
[1721093749654,23.0994,158.34,158.31,15.35]
[1721093750161,23.0994,158.34,158.24,80.46]
[1721093750360,0.8109379,158.37,158.32,15.35]
[1721093750539,0.8109379,158.37,158.26,19.06]
[1721093750540,0.8109379,158.37,158.35,15.35]
[1721093750742,0.8109379,158.37,158.26,19.06]
[1721093750963,0.8109379,158.37,158.34,15.35]
[1721093751264,0.8109379,158.37,158.36,15.35]
[1721093752844,0.8109379,158.37,158.32,61.4]
[1721093753049,0.8109379,158.37,158.36,15.35]
[1721093753661,0.8109379,158.37,158.36,60.35]
[1721093754174,0.8109379,158.37,158.36,15.35]
[1721093754346,0.8109379,158.37,158.27,15.306]
[1721093754543,0.8109379,158.37,158.29,30.66]
[1721093755048,0.8109379,158.37,158.3,1.26239439]
[1721093755573,0.8109379,158.37,158.31,1.08812438]
[1721093755877,6.11,158.37,158.31,1.08812438]
[1721093756846,6.11,158.37,158.29,30.66]
[1721093757046,6.11,158.37,158.3,65.0]
[1721093758575,15.4929,158.38,158.3,84.06]
[1721093758874,22.6072,158.42,158.31,0.50866043]
[1721093759046,22.6072,158.42,158.32,30.66]
[1721093759251,22.6072,158.42,158.33,65.0]
[1721093760078,22.6072,158.42,158.35,30.66]
[1721093760446,6.59026245,158.44,158.36,45.0]
[1721093760651,21.7543,158.47,158.36,65.0]
[1721093761562,6.3108,158.46,158.36,65.0]
[1721093761756,6.3114,158.45,158.36,65.0]
[1721093761970,28.0649,158.47,158.36,65.0]
[1721093762161,6.3111,158.45,158.36,65.0]
[1721093762362,6.3108,158.46,158.36,65.0]
[1721093762680,28.0646,158.47,158.36,65.0]
[1721093762879,20.0,158.46,158.36,65.0]
[1721093763057,26.3108,158.46,158.36,65.0]
[1721093763258,20.0,158.46,158.36,65.0]
[1721093763454,6.3115,158.44,158.36,20.0]
[1721093763873,20.0,158.46,158.36,20.0]
[1721093764768,20.0,158.46,158.37,45.0]
[1721093765377,21.7543,158.47,158.37,45.0]
[1721093765378,21.7543,158.47,158.38,50.66]
[1721093765565,21.7543,158.47,158.39,45.0]
[1721093765969,6.3108,158.46,158.38,20.0]
[1721093766165,6.3108,158.46,158.32,19.06]
[1721093766166,6.3108,158.46,158.37,30.66]
[1721093766364,6.3108,158.46,158.38,20.0]
[1721093767076,21.7543,158.47,158.38,20.0]
[1721093767775,21.7543,158.47,158.39,45.0]
[1721093768558,21.7543,158.47,158.38,20.0]
[1721093768559,28.0646,158.47,158.38,20.0]
[1721093768967,6.3107,158.46,158.38,20.0]
[1721093769164,21.7543,158.47,158.34,30.66]
[1721093769378,20.0,158.46,158.37,30.66]
[1721093769880,26.3108,158.46,158.37,30.66]
[1721093770082,6.3116,158.44,158.37,30.66]
[1721093770280,20.0,158.46,158.34,30.66]
[1721093770577,20.0,158.46,158.35,45.0]
[1721093770976,20.0,158.46,158.36,20.0]
[1721093771293,57.25117898,158.46,158.31,30.66]
[1721093771479,22.8809,158.4,158.31,30.66]
[1721093772387,22.8809,158.4,158.28,30.66]
[1721093772685,6.3136,158.39,158.28,30.66]